[Event "FIDE WYCC Open U14 2023"]
[Site "Montesilvano"]
[Date "2023.11.15"]
[Round "3.16"]
[White "Perossa, Nicolas"]
[Black "Demirtas, Alper"]
[Result "1-0"]
[ECO "C18"]
[WhiteElo "2330"]
[BlackElo "2034"]
[Annotator "RC"]
[PlyCount "75"]
[EventDate "2023.11.13"]
[EventType "swiss"]
[EventCountry "ITA"]
[SourceTitle "playchess.com"]
[Source "ChessBase"]
[SourceQuality "1"]
[TimeControl "40/5400+30:1800+30"]

1. e4 {[%emt 0:03:32]} e6 {[%emt 0:00:02]} 2. d4 {[%emt 0:00:17]} d5 {[%emt 0:00:02]} 3. Nc3 {[%emt 0:00:11]} Bb4 {[%emt 0:00:44]} 4. e5 {[%emt 0:00:09]} c5 {[%emt 0:00:03]} 5. a3 {[%emt 0:00:11]} Bxc3+ {[%emt 0:00:15]} 6. bxc3 {[%emt 0:00:02]} Ne7 {[%emt 0:00:24]} 7. Qg4 {[%emt 0:00:52]} Qc7 {[%emt 0:00:18]} 8. Bd3 {[%emt 0:21:52]} c4 {[%emt 0:00:53]} 9. Be2 {[%emt 0:01:15]} Nf5 {[%emt 0:00:11]} 10. h4 {[%emt 0:10:16]} Nc6 {[%emt 0:05:15]} 11. Rh3 {[%emt 0:15:53]} Bd7 {[%emt 0:14:57]} 12. h5 {[%emt 0:18:10]} O-O-O {[%emt 0:07:28]} 13. h6 {[%emt 0:01:00]} Rdg8 {[%emt 0:08:05]} 14. Qf3 {[%emt 0:01:19]} gxh6 {[%emt 0:03:57]} 15. Kf1 {[%emt 0:05:53]} Rg6 {[%emt 0:02:54]} 16. Qf4 {[%emt 0:06:12]} Rhg8 {[%emt 0:11:21]} 17. Rh2 {[%emt 0:00:02]} Qd8 {[%emt 0:05:59]} 18. Bh5 {[%emt 0:01:14]} R6g7 {[%emt 0:04:46]} 19. Nf3 {[%emt 0:00:35]} Qa5 {[%emt 0:01:21]} 20. Bd2 {[%emt 0:01:20]} Qa4 {[%emt 0:00:54]} 21. Ne1 {[%emt 0:02:45]} Qb5 {[%emt 0:00:27]} 22. g4 {[%emt 0:01:11]} Nfxd4 {[%emt 0:02:54]} 23. a4 {[%emt 0:01:25]} Qa6 {[%emt 0:13:48]} 24. Be3 {[%emt 0:01:44]} Nb5 {[%emt 0:04:33]} 25. axb5 {[%emt 0:00:32]} Qxa1 {[%emt 0:00:02]} 26. bxc6 {[%emt 0:00:14]} Bxc6 {[%emt 0:00:03]} 27. Qd4 {[%emt 0:00:24]} a5 {[%emt 0:01:16]} 28. Qa7 {[%emt 0:04:25]} Qxc3 {[%emt 0:01:37]} 29. Bxf7 {[%emt 0:00:59]} Qxe5 {[%emt 0:04:12]} 30. Rh5 {[%emt 0:00:53]} Qf6 {[%emt 0:00:51]} 31. Bxg8 {[%emt 0:00:25]} Rxg4 {[%emt 0:00:11]} 32. Rxh6 {[%emt 0:00:26]} Rg6 {[%emt 0:00:21]} 33. Qa8+ {[%emt 0:00:23]} Kd7 {[%emt 0:00:01]} 34. Rxh7+ {[%emt 0:00:15]} Rg7 {[%emt 0:00:00]} 35. Rxg7+ {[%emt 0:00:48]} Qxg7 {[%emt 0:00:01]} 36. Bb6 {[%emt 0:00:36]} Qg5 {[%emt 0:01:19]} 37. Nf3 {[%emt 0:00:29]} Qf6 {[%emt 0:00:53]} 38. Ne5+ {[%emt 0:00:13]} 1-0

[Event "FIDE WYCC Open U14 2023"]
[Site "Montesilvano"]
[Date "2023.11.15"]
[Round "3.17"]
[White "Kazantzoglou, Stefanos"]
[Black "George Micheal, Kevin"]
[Result "1-0"]
[ECO "B23"]
[WhiteElo "2031"]
[BlackElo "2317"]
[Annotator "RC"]
[PlyCount "122"]
[EventDate "2023.11.13"]
[EventType "swiss"]
[EventCountry "ITA"]
[SourceTitle "playchess.com"]
[Source "ChessBase"]
[SourceQuality "1"]
[TimeControl "40/5400+30:1800+30"]

1. e4 {[%emt 0:00:01]} c5 {[%emt 0:00:31]} 2. Nc3 {[%emt 0:00:07]} e6 {[%emt 0:00:09]} 3. d4 {[%emt 0:00:05]} cxd4 {[%emt 0:00:08]} 4. Qxd4 {[%emt 0:00:02]} Nc6 {[%emt 0:00:06]} 5. Qd3 {[%emt 0:00:05]} Nf6 {[%emt 0:04:10]} 6. Bf4 {[%emt 0:01:02]} Bb4 {[%emt 0:10:40]} 7. a3 {[%emt 0:10:15]} Bxc3+ {[%emt 0:07:27]} 8. Qxc3 {[%emt 0:02:58]} O-O {[%emt 0:00:35]} 9. f3 {[%emt 0:01:45]} d5 {[%emt 0:00:53]} 10. O-O-O {[%emt 0:04:27]} d4 {[%emt 0:05:31]} 11. Qc5 {[%emt 0:06:10]} e5 {[%emt 0:01:43]} 12. Bg3 {[%emt 0:10:14]} Be6 {[%emt 0:08:56]} 13. Kb1 {[%emt 0:08:03]} Nd7 {[%emt 0:04:12]} 14. Qb5 {[%emt 0:02:56]} Qc7 {[%emt 0:01:14]} 15. Nh3 {[%emt 0:04:01]} a6 {[%emt 0:01:49]} 16. Qe2 {[%emt 0:00:14]} Nc5 {[%emt 0:01:41]} 17. Nf2 {[%emt 0:10:56]} Na4 {[%emt 0:14:15]} 18. Nd3 {[%emt 0:03:31]} b5 {[%emt 0:06:39]} 19. f4 {[%emt 0:02:26]} Rfb8 {[%emt 0:03:27]} 20. f5 {[%emt 0:00:51]} b4 {[%emt 0:02:27]} 21. fxe6 {[%emt 0:04:51]} Nc3+ {[%emt 0:02:26]} 22. bxc3 {[%emt 0:01:03]} Qa5 {[%emt 0:04:55]} 23. exf7+ {[%emt 0:00:14]} Kf8 {[%emt 0:00:08]} 24. cxb4 {[%emt 0:03:58]} Qxa3 {[%emt 0:08:09]} 25. Be1 {[%emt 0:00:26]} a5 {[%emt 0:01:41]} 26. Nc5 {[%emt 0:00:48]} Nxb4 {[%emt 0:04:00]} 27. Nd7+ {[%emt 0:05:13]} Ke7 {[%emt 0:01:46]} 28. f8=Q+ {[%emt 0:00:14]} Rxf8 {[%emt 0:00:10]} 29. Qc4 {[%emt 0:01:49]} Kxd7 {[%emt 0:02:33]} 30. Qb3 {[%emt 0:00:51]} Qxb3+ {[%emt 0:01:05]} 31. cxb3 {[%emt 0:00:01]} Rf4 {[%emt 0:00:27]} 32. Bb5+ {[%emt 0:00:52]} Ke6 {[%emt 0:00:47]} 33. Rf1 {[%emt 0:00:31]} Raf8 {[%emt 0:00:36]} 34. Bxb4 {[%emt 0:00:20]} axb4 {[%emt 0:00:05]} 35. Be2 {[%emt 0:01:32]} R8f6 {[%emt 0:01:00]} 36. Rxf4 {[%emt 0:00:07]} Rxf4 {[%emt 0:00:03]} 37. Bf3 {[%emt 0:00:14]} g5 {[%emt 0:00:11]} 38. h3 {[%emt 0:00:01]} h5 {[%emt 0:00:05]} 39. Re1 {[%emt 0:03:11]} g4 {[%emt 0:00:47]} 40. hxg4 {[%emt 0:00:00]} hxg4 {[%emt 0:00:00]} 41. Bd1 {[%emt 0:01:24]} Kf6 {[%emt 0:02:47]} 42. g3 {[%emt 0:01:31]} Rf2 {[%emt 0:00:03]} 43. Bxg4 {[%emt 0:00:30]} Kg5 {[%emt 0:02:37]} 44. Bd1 {[%emt 0:04:52]} Kg6 {[%emt 0:00:43]} 45. Rg1 {[%emt 0:03:17]} Rd2 {[%emt 0:01:25]} 46. Kc1 {[%emt 0:00:20]} Rd3 {[%emt 0:00:07]} 47. Kc2 {[%emt 0:00:46]} Re3 {[%emt 0:00:12]} 48. Kd2 {[%emt 0:00:05]} Kg5 {[%emt 0:00:09]} 49. Bc2 {[%emt 0:00:43]} Kg4 {[%emt 0:00:58]} 50. Bd3 {[%emt 0:00:28]} Rxg3 {[%emt 0:01:17]} 51. Be2+ {[%emt 0:00:12]} Kf4 {[%emt 0:00:08]} 52. Rxg3 {[%emt 0:00:02]} Kxg3 {[%emt 0:00:05]} 53. Kd3 {[%emt 0:00:03]} Kg2 {[%emt 0:00:53]} 54. Kc4 {[%emt 0:00:58]} Kf2 {[%emt 0:00:04]} 55. Bd3 {[%emt 0:00:54]} Ke3 {[%emt 0:00:49]} 56. Bb1 {[%emt 0:00:03]} Ke2 {[%emt 0:00:18]} 57. Kxb4 {[%emt 0:00:36]} d3 {[%emt 0:00:04]} 58. Kc3 {[%emt 0:00:05]} d2 {[%emt 0:00:04]} 59. Bc2 {[%emt 0:00:01]} d1=Q {[%emt 0:00:06]} 60. Bxd1+ {[%emt 0:00:05]} Kxd1 {[%emt 0:00:04]} 61. Kd3 {[%emt 0:00:16]} Kc1 {[%emt 0:00:05]} 1-0

[Event "FIDE WYCC Open U14 2023"]
[Site "Montesilvano"]
[Date "2023.11.15"]
[Round "3.18"]
[White "Lissillour, Baptiste"]
[Black "Pehar, Borna"]
[Result "1-0"]
[ECO "B32"]
[WhiteElo "2298"]
[BlackElo "1985"]
[Annotator "RC"]
[PlyCount "65"]
[EventDate "2023.11.13"]
[EventType "swiss"]
[EventCountry "ITA"]
[SourceTitle "playchess.com"]
[Source "ChessBase"]
[SourceQuality "1"]
[TimeControl "40/5400+30:1800+30"]

1. e4 {[%emt 0:00:02]} c5 {[%emt 0:00:10]} 2. Nf3 {[%emt 0:00:03]} Nc6 {[%emt 0:00:07]} 3. d4 {[%emt 0:00:02]} cxd4 {[%emt 0:00:06]} 4. Nxd4 {[%emt 0:00:04]} e5 {[%emt 0:00:07]} 5. Nb5 {[%emt 0:00:21]} d6 {[%emt 0:00:08]} 6. c4 {[%emt 0:00:15]} g6 {[%emt 0:00:26]} 7. Bd3 {[%emt 0:03:19]} Be6 {[%emt 0:01:23]} 8. O-O {[%emt 0:02:23]} Nf6 {[%emt 0:02:42]} 9. N1c3 {[%emt 0:15:11]} a6 {[%emt 0:00:09]} 10. Na3 {[%emt 0:00:04]} Bg7 {[%emt 0:00:21]} 11. b3 {[%emt 0:01:03]} O-O {[%emt 0:02:05]} 12. Nc2 {[%emt 0:03:28]} Rc8 {[%emt 0:00:41]} 13. Bb2 {[%emt 0:04:41]} Nh5 {[%emt 0:09:43]} 14. g3 {[%emt 0:09:18]} Bh3 {[%emt 0:16:07]} 15. Re1 {[%emt 0:03:48]} Nf6 {[%emt 0:15:12]} 16. Qd2 {[%emt 0:08:20]} Ng4 {[%emt 0:04:53]} 17. Bf1 {[%emt 0:10:48]} Bxf1 {[%emt 0:02:29]} 18. Rxf1 {[%emt 0:00:02]} Bh6 {[%emt 0:06:07]} 19. Qe2 {[%emt 0:00:26]} Nf6 {[%emt 0:13:15]} 20. Rad1 {[%emt 0:01:39]} Qc7 {[%emt 0:00:57]} 21. f4 {[%emt 0:05:23]} exf4 {[%emt 0:05:12]} 22. gxf4 {[%emt 0:02:56]} Rfe8 {[%emt 0:01:24]} 23. Qf3 {[%emt 0:03:06]} Qe7 {[%emt 0:00:53]} 24. Rfe1 {[%emt 0:07:26]} Nh5 {[%emt 0:05:15]} 25. Nd5 {[%emt 0:00:57]} Qh4 {[%emt 0:00:41]} 26. Rf1 {[%emt 0:00:34]} f5 {[%emt 0:01:21]} 27. exf5 {[%emt 0:02:44]} gxf5 {[%emt 0:01:51]} 28. Qxh5 {[%emt 0:00:45]} Qxh5 {[%emt 0:00:22]} 29. Nf6+ {[%emt 0:00:09]} Kf7 {[%emt 0:00:00]} 30. Nxh5 {[%emt 0:00:07]} Re2 {[%emt 0:00:30]} 31. Rf2 {[%emt 0:00:13]} Rg8+ {[%emt 0:00:07]} 32. Kf1 {[%emt 0:01:05]} Re4 {[%emt 0:00:33]} 33. Nf6 {[%emt 0:00:25]} 1-0

[Event "FIDE WYCC Open U14 2023"]
[Site "Montesilvano"]
[Date "2023.11.15"]
[Round "3.19"]
[White "Radzimski, Antoni"]
[Black "Zienkiewicz, Jan"]
[Result "1-0"]
[ECO "D35"]
[WhiteElo "1904"]
[BlackElo "2296"]
[Annotator "RC"]
[PlyCount "71"]
[EventDate "2023.11.13"]
[EventType "swiss"]
[EventCountry "ITA"]
[SourceTitle "playchess.com"]
[Source "ChessBase"]
[SourceQuality "1"]
[TimeControl "40/5400+30:1800+30"]

1. d4 {[%emt 0:00:02]} Nf6 {[%emt 0:00:13]} 2. c4 {[%emt 0:00:07]} e6 {[%emt 0:00:30]} 3. Nc3 {[%emt 0:00:05]} d5 {[%emt 0:00:09]} 4. cxd5 {[%emt 0:00:06]} exd5 {[%emt 0:00:01]} 5. Bg5 {[%emt 0:00:01]} Bb4 {[%emt 0:00:43]} 6. e3 {[%emt 0:00:29]} h6 {[%emt 0:00:55]} 7. Bh4 {[%emt 0:00:13]} g5 {[%emt 0:00:11]} 8. Bg3 {[%emt 0:00:31]} h5 {[%emt 0:00:19]} 9. h4 {[%emt 0:02:26]} Ne4 {[%emt 0:00:24]} 10. Nge2 {[%emt 0:02:37]} Bg4 {[%emt 0:00:15]} 11. Qb3 {[%emt 0:01:36]} Nxg3 {[%emt 0:08:36]} 12. Nxg3 {[%emt 0:04:39]} Nc6 {[%emt 0:00:41]} 13. Nge2 {[%emt 0:07:48]} Rh6 {[%emt 0:22:45]} 14. f3 {[%emt 0:14:50]} Bf5 {[%emt 0:09:36]} 15. O-O-O {[%emt 0:05:35]} Rd6 {[%emt 0:12:37]} 16. g4 {[%emt 0:14:04]} Bxc3 {[%emt 0:23:03]} 17. Nxc3 {[%emt 0:02:23]} Be6 {[%emt 0:03:01]} 18. hxg5 {[%emt 0:02:00]} Qxg5 {[%emt 0:01:16]} 19. Nb5 {[%emt 0:00:26]} Rd7 {[%emt 0:00:31]} 20. Rxh5 {[%emt 0:00:15]} Qf6 {[%emt 0:01:13]} 21. g5 {[%emt 0:09:24]} Qg7 {[%emt 0:00:22]} 22. Bd3 {[%emt 0:00:32]} O-O-O {[%emt 0:00:47]} 23. Rg1 {[%emt 0:00:54]} a6 {[%emt 0:01:47]} 24. Nc3 {[%emt 0:00:19]} Nxd4 {[%emt 0:02:57]} 25. exd4 {[%emt 0:01:52]} Qxd4 {[%emt 0:00:01]} 26. Qd1 {[%emt 0:00:54]} Rd6 {[%emt 0:03:09]} 27. g6 {[%emt 0:03:06]} fxg6 {[%emt 0:01:13]} 28. Rxg6 {[%emt 0:00:36]} Qf4+ {[%emt 0:02:50]} 29. Kb1 {[%emt 0:01:31]} d4 {[%emt 0:00:29]} 30. Rxe6 {[%emt 0:03:42]} dxc3 {[%emt 0:03:33]} 31. Rxd6 {[%emt 0:00:06]} Rxd6 {[%emt 0:00:11]} 32. Rh8+ {[%emt 0:01:32]} Kd7 {[%emt 0:00:01]} 33. Qe2 {[%emt 0:01:01]} Rb6 {[%emt 0:01:49]} 34. Qe8+ {[%emt 0:01:09]} Kd6 {[%emt 0:00:01]} 35. Qd8+ {[%emt 0:00:35]} Kc5 {[%emt 0:00:33]} 36. Rh5+ {[%emt 0:00:13]} 1-0

[Event "FIDE WYCC Open U14 2023"]
[Site "Montesilvano"]
[Date "2023.11.15"]
[Round "3.20"]
[White "Tamer Waguih, Farid"]
[Black "Cieslak, Patryk"]
[Result "1/2-1/2"]
[ECO "D02"]
[WhiteElo "1893"]
[BlackElo "2284"]
[Annotator "ChessBase"]
[PlyCount "67"]
[EventDate "2023.11.13"]
[EventType "swiss"]
[EventCountry "ITA"]
[SourceTitle "playchess.com"]
[Source "ChessBase"]
[SourceQuality "1"]
[TimeControl "40/5400+30:1800+30"]

1. d4 {[%emt 0:00:04]} d5 {[%emt 0:01:20]} 2. Bf4 {[%emt 0:00:19]} Nf6 {[%emt 0:01:00]} 3. Nf3 {[%emt 0:00:15]} c5 {[%emt 0:00:49]} 4. e3 {[%emt 0:01:55]} Nc6 {[%emt 0:01:51]} 5. Be2 {[%emt 0:14:33]} Qb6 {[%emt 0:06:40]} 6. Nc3 {[%emt 0:03:16]} a6 {[%emt 0:08:31]} 7. O-O {[%emt 0:03:09]} cxd4 {[%emt 0:02:34]} 8. exd4 {[%emt 0:02:59]} Bg4 {[%emt 0:11:41]} 9. Na4 {[%emt 0:14:55]} Qd8 {[%emt 0:01:56]} 10. Nc5 {[%emt 0:03:40]} Qc8 {[%emt 0:01:41]} 11. c3 {[%emt 0:02:56]} e6 {[%emt 0:08:53]} 12. Nd3 {[%emt 0:02:40]} Be7 {[%emt 0:00:54]} 13. Nfe5 {[%emt 0:03:05]} Bxe2 {[%emt 0:04:03]} 14. Qxe2 {[%emt 0:00:04]} O-O {[%emt 0:00:23]} 15. Kh1 {[%emt 0:04:52]} Nxe5 {[%emt 0:01:08]} 16. Nxe5 {[%emt 0:00:55]} Nd7 {[%emt 0:00:59]} 17. Rae1 {[%emt 0:03:04]} b5 {[%emt 0:04:19]} 18. Qh5 {[%emt 0:04:51]} Nf6 {[%emt 0:05:13]} 19. Qh4 {[%emt 0:01:45]} Ra7 {[%emt 0:02:25]} 20. Re3 {[%emt 0:02:50]} Ne4 {[%emt 0:01:19]} 21. Qh5 {[%emt 0:01:03]} f6 {[%emt 0:01:56]} 22. Nd3 {[%emt 0:02:15]} g6 {[%emt 0:07:22]} 23. Qe2 {[%emt 0:01:32]} e5 {[%emt 0:09:12]} 24. dxe5 {[%emt 0:03:34]} g5 {[%emt 0:00:20]} 25. Bg3 {[%emt 0:02:11]} f5 {[%emt 0:00:56]} 26. f4 {[%emt 0:03:11]} g4 {[%emt 0:00:48]} 27. Rd1 {[%emt 0:03:23]} h5 {[%emt 0:02:45]} 28. Nc1 {[%emt 0:05:35]} Qc6 {[%emt 0:04:08]} 29. Nb3 {[%emt 0:01:08]} Rd7 {[%emt 0:03:13]} 30. Red3 {[%emt 0:02:14]} Qh6 {[%emt 0:00:14]} 31. Qe3 {[%emt 0:02:05]} Rfd8 {[%emt 0:02:10]} 32. Nd4 {[%emt 0:01:36]} Rf8 {[%emt 0:02:21]} 33. Nb3 {[%emt 0:00:53]} Rfd8 {[%emt 0:00:09]} 34. Nd4 {[%emt 0:00:08]} 1/2-1/2

[Event "FIDE WYCC Open U14 2023"]
[Site "Montesilvano"]
[Date "2023.11.15"]
[Round "3.21"]
[White "Matyassy, Lazar"]
[Black "Coicev, Matei-Andrei"]
[Result "1-0"]
[ECO "B96"]
[WhiteElo "2281"]
[BlackElo "2006"]
[Annotator "ChessBase"]
[PlyCount "105"]
[EventDate "2023.11.13"]
[EventType "swiss"]
[EventCountry "ITA"]
[SourceTitle "playchess.com"]
[Source "ChessBase"]
[SourceQuality "1"]
[TimeControl "40/5400+30:1800+30"]

1. e4 {[%emt 0:00:12]} c5 {[%emt 0:00:43]} 2. Nf3 {[%emt 0:00:06]} d6 {[%emt 0:00:12]} 3. d4 {[%emt 0:00:11]} cxd4 {[%emt 0:00:07]} 4. Nxd4 {[%emt 0:00:07]} Nf6 {[%emt 0:00:09]} 5. Nc3 {[%emt 0:00:14]} a6 {[%emt 0:00:07]} 6. Bg5 {[%emt 0:01:17]} e6 {[%emt 0:00:13]} 7. f4 {[%emt 0:00:07]} Nbd7 {[%emt 0:00:06]} 8. Qe2 {[%emt 0:03:10]} Qc7 {[%emt 0:00:16]} 9. O-O-O {[%emt 0:00:35]} b5 {[%emt 0:00:10]} 10. a3 {[%emt 0:00:26]} Rb8 {[%emt 0:00:29]} 11. g4 {[%emt 0:22:08]} Be7 {[%emt 0:00:21]} 12. Bxf6 {[%emt 0:02:24]} Nxf6 {[%emt 0:01:20]} 13. g5 {[%emt 0:02:29]} Nd7 {[%emt 0:01:08]} 14. f5 {[%emt 0:14:01]} Bxg5+ {[%emt 0:11:29]} 15. Kb1 {[%emt 0:04:16]} Nc5 {[%emt 0:18:38]} 16. fxe6 {[%emt 0:06:56]} Bxe6 {[%emt 0:02:19]} 17. Nf5 {[%emt 0:17:57]} Kf8 {[%emt 0:11:13]} 18. Nd5 {[%emt 0:09:52]} Bxd5 {[%emt 0:02:49]} 19. Rxd5 {[%emt 0:00:02]} b4 {[%emt 0:10:06]} 20. a4 {[%emt 0:01:33]} Bf6 {[%emt 0:05:23]} 21. Qc4 {[%emt 0:00:50]} Be5 {[%emt 0:04:06]} 22. Bh3 {[%emt 0:00:02]} Ne6 {[%emt 0:04:44]} 23. Qxc7 {[%emt 0:05:31]} Nxc7 {[%emt 0:00:02]} 24. Rdd1 {[%emt 0:00:27]} Ne8 {[%emt 0:07:39]} 25. Bf1 {[%emt 0:02:32]} g6 {[%emt 0:02:42]} 26. Nd4 {[%emt 0:02:04]} Nc7 {[%emt 0:02:44]} 27. Nc6 {[%emt 0:01:33]} Rb6 {[%emt 0:01:59]} 28. Nxe5 {[%emt 0:00:08]} dxe5 {[%emt 0:00:01]} 29. Rd7 {[%emt 0:00:09]} Rc6 {[%emt 0:01:01]} 30. b3 {[%emt 0:00:11]} Ke8 {[%emt 0:03:46]} 31. Bh3 {[%emt 0:00:14]} Ne6 {[%emt 0:01:12]} 32. Bxe6 {[%emt 0:01:46]} Rxe6 {[%emt 0:00:18]} 33. Rb7 {[%emt 0:00:06]} Kf8 {[%emt 0:01:01]} 34. Rf1 {[%emt 0:00:01]} Re7 {[%emt 0:00:08]} 35. Rxb4 {[%emt 0:00:10]} Kg7 {[%emt 0:01:06]} 36. Rb6 {[%emt 0:00:15]} Rd8 {[%emt 0:02:06]} 37. Rxa6 {[%emt 0:02:24]} f5 {[%emt 0:01:38]} 38. exf5 {[%emt 0:01:32]} gxf5 {[%emt 0:00:12]} 39. Rxf5 {[%emt 0:00:02]} e4 {[%emt 0:01:24]} 40. Rg5+ {[%emt 0:00:00]} Kf7 {[%emt 0:00:00]} 41. Rh6 {[%emt 0:16:49]} Rd1+ {[%emt 0:07:28]} 42. Kb2 {[%emt 0:00:09]} Ke8 {[%emt 0:08:11]} 43. Rhh5 {[%emt 0:02:06]} Rd6 {[%emt 0:01:09]} 44. Re5 {[%emt 0:02:25]} Rde6 {[%emt 0:00:31]} 45. Rxe6 {[%emt 0:00:11]} Rxe6 {[%emt 0:00:02]} 46. Kc1 {[%emt 0:02:02]} e3 {[%emt 0:00:17]} 47. Kd1 {[%emt 0:00:05]} e2+ {[%emt 0:00:31]} 48. Ke1 {[%emt 0:00:06]} Kd8 {[%emt 0:00:18]} 49. Rxh7 {[%emt 0:00:42]} Rc6 {[%emt 0:00:08]} 50. Kxe2 {[%emt 0:00:40]} Rxc2+ {[%emt 0:00:10]} 51. Kd3 {[%emt 0:00:06]} Rb2 {[%emt 0:00:08]} 52. Kc4 {[%emt 0:00:17]} Kc8 {[%emt 0:00:07]} 53. h4 {[%emt 0:00:51]} 1-0

[Event "FIDE WYCC Open U14 2023"]
[Site "Montesilvano"]
[Date "2023.11.15"]
[Round "3.22"]
[White "Dhruva Thota"]
[Black "Panda, Barnabas"]
[Result "1-0"]
[ECO "B43"]
[WhiteElo "2192"]
[BlackElo "1905"]
[Annotator "ChessBase"]
[PlyCount "97"]
[EventDate "2023.11.13"]
[EventType "swiss"]
[EventCountry "ITA"]
[SourceTitle "playchess.com"]
[Source "ChessBase"]
[SourceQuality "1"]
[TimeControl "40/5400+30:1800+30"]

1. e4 {[%emt 0:00:33]} c5 {[%emt 0:00:21]} 2. Nf3 {[%emt 0:00:13]} e6 {[%emt 0:00:14]} 3. d4 {[%emt 0:00:09]} cxd4 {[%emt 0:00:15]} 4. Nxd4 {[%emt 0:00:10]} a6 {[%emt 0:00:11]} 5. Nc3 {[%emt 0:01:02]} b5 {[%emt 0:00:23]} 6. Bd3 {[%emt 0:00:52]} Bb7 {[%emt 0:00:42]} 7. a4 {[%emt 0:01:48]} b4 {[%emt 0:03:37]} 8. Na2 {[%emt 0:03:25]} Nc6 {[%emt 0:12:27]} 9. Be3 {[%emt 0:04:05]} d5 {[%emt 0:02:49]} 10. Nxc6 {[%emt 0:14:53]} Bxc6 {[%emt 0:01:06]} 11. Qf3 {[%emt 0:00:53]} dxe4 {[%emt 0:11:17]} 12. Bxe4 {[%emt 0:00:03]} Bxe4 {[%emt 0:00:15]} 13. Qxe4 {[%emt 0:00:09]} Nf6 {[%emt 0:00:08]} 14. Qc6+ {[%emt 0:01:33]} Nd7 {[%emt 0:00:11]} 15. Rd1 {[%emt 0:01:35]} Qc8 {[%emt 0:00:37]} 16. Qf3 {[%emt 0:13:58]} Nf6 {[%emt 0:06:48]} 17. c4 {[%emt 0:05:09]} Rb8 {[%emt 0:07:29]} 18. b3 {[%emt 0:02:26]} Be7 {[%emt 0:04:25]} 19. h4 {[%emt 0:08:27]} Qb7 {[%emt 0:05:47]} 20. Qxb7 {[%emt 0:08:14]} Rxb7 {[%emt 0:00:15]} 21. Bd4 {[%emt 0:00:12]} Ne4 {[%emt 0:06:33]} 22. h5 {[%emt 0:08:24]} f6 {[%emt 0:08:23]} 23. f3 {[%emt 0:02:47]} Nc3 {[%emt 0:05:18]} 24. Rd2 {[%emt 0:05:11]} e5 {[%emt 0:05:14]} 25. Be3 {[%emt 0:01:19]} Nxa4 {[%emt 0:04:23]} 26. bxa4 {[%emt 0:00:18]} b3 {[%emt 0:00:06]} 27. Nc3 {[%emt 0:00:41]} Bb4 {[%emt 0:00:11]} 28. Nb1 {[%emt 0:00:18]} Ke7 {[%emt 0:00:22]} 29. Ke2 {[%emt 0:01:10]} Bxd2 {[%emt 0:00:30]} 30. Nxd2 {[%emt 0:01:04]} Rc8 {[%emt 0:05:33]} 31. a5 {[%emt 0:01:27]} Rb4 {[%emt 0:03:18]} 32. Rb1 {[%emt 0:01:39]} g6 {[%emt 0:02:21]} 33. hxg6 {[%emt 0:00:38]} hxg6 {[%emt 0:00:06]} 34. Kd3 {[%emt 0:00:18]} b2 {[%emt 0:03:19]} 35. Kc3 {[%emt 0:01:32]} Ra4 {[%emt 0:00:34]} 36. Bb6 {[%emt 0:00:44]} Ra3+ {[%emt 0:00:22]} 37. Kxb2 {[%emt 0:00:16]} Rd3 {[%emt 0:00:15]} 38. Kc2 {[%emt 0:00:14]} Rd7 {[%emt 0:00:35]} 39. Kc3 {[%emt 0:01:01]} f5 {[%emt 0:01:10]} 40. Nb3 {[%emt 0:00:00]} Kf6 {[%emt 0:00:00]} 41. c5 {[%emt 0:03:13]} g5 {[%emt 0:04:58]} 42. Re1 {[%emt 0:04:59]} Ke6 {[%emt 0:05:58]} 43. Nd2 {[%emt 0:00:56]} Kd5 {[%emt 0:01:56]} 44. Nc4 {[%emt 0:01:20]} Re7 {[%emt 0:00:18]} 45. Ne3+ {[%emt 0:01:07]} Ke6 {[%emt 0:00:34]} 46. Rh1 {[%emt 0:01:07]} e4 {[%emt 0:03:04]} 47. fxe4 {[%emt 0:00:40]} fxe4 {[%emt 0:00:06]} 48. Kd4 {[%emt 0:00:11]} Kd7 {[%emt 0:01:31]} 49. Rh6 {[%emt 0:01:55]} 1-0

[Event "FIDE WYCC Open U14 2023"]
[Site "Montesilvano"]
[Date "2023.11.15"]
[Round "3.23"]
[White "Sodbilegt, Naranbold"]
[Black "Ral Lustig, Melvin"]
[Result "1/2-1/2"]
[ECO "B90"]
[WhiteElo "2151"]
[BlackElo "1911"]
[Annotator "ChessBase"]
[PlyCount "92"]
[EventDate "2023.11.13"]
[EventType "swiss"]
[EventCountry "ITA"]
[SourceTitle "playchess.com"]
[Source "ChessBase"]
[SourceQuality "1"]
[TimeControl "40/5400+30:1800+30"]

1. e4 {[%emt 0:00:03]} c5 {[%emt 0:00:05]} 2. Nf3 {[%emt 0:00:20]} d6 {[%emt 0:00:06]} 3. d4 {[%emt 0:00:10]} cxd4 {[%emt 0:00:05]} 4. Nxd4 {[%emt 0:00:04]} Nf6 {[%emt 0:00:07]} 5. Nc3 {[%emt 0:04:27]} a6 {[%emt 0:00:04]} 6. Be3 {[%emt 0:01:15]} Nc6 {[%emt 0:06:32]} 7. f3 Nxd4 {[%emt 0:00:53]} 8. Qxd4 {[%emt 0:07:33]} e5 {[%emt 0:00:38]} 9. Qd2 {[%emt 0:06:22]} Be6 {[%emt 0:00:23]} 10. O-O-O {[%emt 0:03:55]} Be7 {[%emt 0:00:21]} 11. g4 {[%emt 0:07:47]} O-O {[%emt 0:00:16]} 12. Rg1 {[%emt 0:02:25]} b5 {[%emt 0:10:17]} 13. g5 {[%emt 0:00:17]} Nd7 {[%emt 0:03:27]} 14. Nd5 {[%emt 0:05:22]} Bxd5 {[%emt 0:01:39]} 15. exd5 {[%emt 0:05:02]} Qc7 {[%emt 0:12:37]} 16. h4 {[%emt 0:01:34]} Nb6 {[%emt 0:14:41]} 17. h5 {[%emt 0:15:11]} Nc4 {[%emt 0:01:30]} 18. Bxc4 {[%emt 0:00:17]} Qxc4 {[%emt 0:00:46]} 19. b3 {[%emt 0:05:47]} Qc7 {[%emt 0:00:49]} 20. f4 {[%emt 0:04:22]} Rac8 {[%emt 0:05:52]} 21. f5 {[%emt 0:04:45]} Qc3 {[%emt 0:02:36]} 22. Qxc3 {[%emt 0:02:19]} Rxc3 {[%emt 0:00:06]} 23. Rd3 {[%emt 0:03:57]} Rxd3 {[%emt 0:01:01]} 24. cxd3 {[%emt 0:00:02]} Rc8+ {[%emt 0:01:31]} 25. Kb2 {[%emt 0:01:42]} Bd8 {[%emt 0:00:41]} 26. b4 {[%emt 0:02:09]} Kf8 {[%emt 0:07:38]} 27. a4 {[%emt 0:06:47]} e4 {[%emt 0:05:11]} 28. axb5 {[%emt 0:01:47]} axb5 {[%emt 0:00:16]} 29. d4 {[%emt 0:02:50]} Rc4 {[%emt 0:00:23]} 30. Kb3 {[%emt 0:00:04]} Bb6 {[%emt 0:00:39]} 31. Rd1 {[%emt 0:02:28]} Ke7 {[%emt 0:02:50]} 32. Bf2 {[%emt 0:00:44]} Kd7 {[%emt 0:02:28]} 33. Bg1 {[%emt 0:00:36]} Bd8 {[%emt 0:01:41]} 34. Be3 {[%emt 0:01:49]} Bb6 {[%emt 0:00:05]} 35. g6 {[%emt 0:01:47]} fxg6 {[%emt 0:00:48]} 36. fxg6 {[%emt 0:00:17]} hxg6 {[%emt 0:00:12]} 37. hxg6 {[%emt 0:00:03]} Ke8 {[%emt 0:03:10]} 38. Bf2 {[%emt 0:00:49]} Ke7 {[%emt 0:04:48]} 39. Re1 {[%emt 0:01:44]} Kf6 {[%emt 0:00:11]} 40. Rxe4 {[%emt 0:00:00]} Kxg6 {[%emt 0:00:00]} 41. Re6+ {[%emt 0:12:14]} Kf5 {[%emt 0:00:24]} 42. Rxd6 {[%emt 0:00:19]} Bxd4 {[%emt 0:00:16]} 43. Bxd4 {[%emt 0:02:04]} Rxd4 {[%emt 0:00:01]} 44. Kc3 {[%emt 0:00:53]} Rc4+ {[%emt 0:00:08]} 45. Kb3 {[%emt 0:00:14]} Rd4 {[%emt 0:00:07]} 46. Kc3 {[%emt 0:00:23]} Rc4+ {[%emt 0:00:08]} 1/2-1/2